[Event "*** Titled Tuesday Blitz"]
[Site "Chess.com"]
[Date "2020.11.03"]
[Round "1"]
[White "ajdemipopushi"]
[Black "nrvisakh"]
[Result "0-1"]
[WhiteElo "2377"]
[BlackElo "2744"]
[TimeControl "180+1"]
[EndTime "10:08:09 PST"]
[Termination "nrvisakh won by resignation"]

1. Nf3 {[%clk 0:02:59.9]} 1... Nf6 {[%clk 0:02:57.8]} 2. g3 {[%clk 0:03:00.2]}
2... g6 {[%clk 0:02:57.6]} 3. c4 {[%clk 0:03:00.5]} 3... Bg7 {[%clk 0:02:57.5]}
4. Bg2 {[%clk 0:03:01.4]} 4... O-O {[%clk 0:02:57.6]} 5. O-O {[%clk 0:03:02.3]}
5... d6 {[%clk 0:02:57.9]} 6. d4 {[%clk 0:03:02.4]} 6... Nc6 {[%clk 0:02:56.5]}
7. Nc3 {[%clk 0:03:02.9]} 7... a6 {[%clk 0:02:56.7]} 8. h3 {[%clk 0:03:02.4]}
8... Rb8 {[%clk 0:02:55.4]} 9. e4 {[%clk 0:03:02.6]} 9... b5 {[%clk 0:02:46.4]}
10. e5 {[%clk 0:03:02.4]} 10... Ne8 {[%clk 0:02:39.3]} 11. cxb5 {[%clk
0:02:49.6]} 11... axb5 {[%clk 0:02:38]} 12. Qe2 {[%clk 0:02:46.1]} 12... b4
{[%clk 0:01:51.8]} 13. Na4 {[%clk 0:02:45.2]} 13... Bd7 {[%clk 0:01:48.6]} 14.
b3 {[%clk 0:02:34.3]} 14... Na7 {[%clk 0:01:37.1]} 15. Rd1 {[%clk 0:02:28.9]}
15... Qc8 {[%clk 0:01:30]} 16. Kh2 {[%clk 0:02:23.5]} 16... Nb5 {[%clk
0:01:25.6]} 17. Bb2 {[%clk 0:02:20.8]} 17... c6 {[%clk 0:01:16.2]} 18. Rac1
{[%clk 0:02:18.8]} 18... Nec7 {[%clk 0:01:15.7]} 19. Ng5 {[%clk 0:02:10]} 19...
Qa6 {[%clk 0:01:03.2]} 20. f4 {[%clk 0:01:28.5]} 20... Rbc8 {[%clk 0:00:58]} 21.
Ne4 {[%clk 0:01:16.1]} 21... Rfe8 {[%clk 0:00:53.9]} 22. Qd2 {[%clk 0:01:14.8]}
22... Qa5 {[%clk 0:00:48.4]} 23. h4 {[%clk 0:01:10.6]} 23... Nd5 {[%clk
0:00:40.1]} 24. Ng5 {[%clk 0:00:55]} 24... Ra8 {[%clk 0:00:26.9]} 25. Rc2 {[%clk
0:00:50.4]} 25... Nbc3 {[%clk 0:00:24.8]} 26. Bxd5 {[%clk 0:00:40.7]} 26... Nxd5
{[%clk 0:00:13.1]} 27. Re1 {[%clk 0:00:40.2]} 27... Bf5 {[%clk 0:00:09]} 28.
Rxc6 {[%clk 0:00:32]} 28... Rac8 {[%clk 0:00:08.8]} 29. Rxc8 {[%clk 0:00:30.4]}
29... Rxc8 {[%clk 0:00:08.2]} 30. e6 {[%clk 0:00:30.9]} 30... f6 {[%clk
0:00:08.1]} 31. Ne4 {[%clk 0:00:24.8]} 31... Bxe4 {[%clk 0:00:08.1]} 32. Rxe4
{[%clk 0:00:24.5]} 32... Nc3 {[%clk 0:00:07.4]} 33. Re1 {[%clk 0:00:16.3]} 33...
Nxa4 {[%clk 0:00:06]} 34. bxa4 {[%clk 0:00:16.2]} 34... Qxa4 {[%clk 0:00:06.9]}
35. Re2 {[%clk 0:00:16.5]} 35... f5 {[%clk 0:00:06.2]} 36. d5 {[%clk 0:00:16.1]}
36... Qxa2 {[%clk 0:00:04.2]} 37. Bxg7 {[%clk 0:00:15.6]} 37... Qxd2 {[%clk
0:00:03.9]} 38. Rxd2 {[%clk 0:00:15.8]} 38... Kxg7 {[%clk 0:00:04.4]} 39. Rb2
{[%clk 0:00:15.8]} 39... Rb8 {[%clk 0:00:04.5]} 40. Kg2 {[%clk 0:00:15.5]} 40...
h6 {[%clk 0:00:04.8]} 41. Kf3 {[%clk 0:00:15.7]} 41... g5 {[%clk 0:00:05.3]} 42.
Ke3 {[%clk 0:00:14.1]} 42... b3 {[%clk 0:00:05.2]} 43. Kd3 {[%clk 0:00:14.2]}
43... Kg6 {[%clk 0:00:05.5]} 44. Kc4 {[%clk 0:00:14.2]} 44... Kh5 {[%clk
0:00:05.4]} 45. hxg5 {[%clk 0:00:13.7]} 45... hxg5 {[%clk 0:00:06.3]} 46. Rxb3
{[%clk 0:00:13.5]} 46... Rxb3 {[%clk 0:00:05.2]} 47. Kxb3 {[%clk 0:00:13.7]}
47... gxf4 {[%clk 0:00:05.5]} 48. gxf4 {[%clk 0:00:13.5]} 48... Kg4 {[%clk
0:00:06.4]} 49. Kb4 {[%clk 0:00:13.5]} 49... Kxf4 {[%clk 0:00:06.8]} 50. Kb5
{[%clk 0:00:13.5]} 50... Ke5 {[%clk 0:00:07.2]} 51. Kc6 {[%clk 0:00:11.5]} 51...
f4 {[%clk 0:00:07.6]} 52. Kd7 {[%clk 0:00:11.8]} 52... Kf6 {[%clk 0:00:08.5]}
53. Kc6 {[%clk 0:00:12]} 53... f3 {[%clk 0:00:09.4]} 54. Kb5 {[%clk 0:00:12.4]}
54... f2 {[%clk 0:00:10.1]} 55. Kc4 {[%clk 0:00:13.3]} 55... f1=Q+ {[%clk
0:00:10.6]} 0-1

[Event "*** Titled Tuesday Blitz"]
[Site "Chess.com"]
[Date "2020.11.03"]
[Round "1"]
[White "barriochess"]
[Black "Evgeny81"]
[Result "0-1"]
[WhiteElo "2364"]
[BlackElo "2707"]
[TimeControl "180+1"]
[EndTime "10:08:09 PST"]
[Termination "Evgeny81 won by resignation"]

1. d4 {[%clk 0:03:00.8]} 1... Nf6 {[%clk 0:02:57.6]} 2. c4 {[%clk 0:02:58.3]}
2... e5 {[%clk 0:02:57.9]} 3. dxe5 {[%clk 0:02:56.7]} 3... Ne4 {[%clk
0:02:58.3]} 4. a3 {[%clk 0:02:55.6]} 4... Nc6 {[%clk 0:02:57.4]} 5. Nf3 {[%clk
0:02:50]} 5... d6 {[%clk 0:02:55]} 6. e3 {[%clk 0:02:29.5]} 6... Nxe5 {[%clk
0:02:44.4]} 7. Nxe5 {[%clk 0:02:24.2]} 7... dxe5 {[%clk 0:02:45.3]} 8. Qxd8+
{[%clk 0:02:24.5]} 8... Kxd8 {[%clk 0:02:46.2]} 9. Nd2 {[%clk 0:02:20.7]} 9...
Nc5 {[%clk 0:02:42.2]} 10. b4 {[%clk 0:02:17.3]} 10... Na4 {[%clk 0:02:42.1]}
11. Bd3 {[%clk 0:02:15.1]} 11... a5 {[%clk 0:02:40.6]} 12. bxa5 {[%clk
0:02:11.7]} 12... Rxa5 {[%clk 0:02:33.3]} 13. O-O {[%clk 0:02:10.8]} 13... Be6
{[%clk 0:02:31.6]} 14. Nb3 {[%clk 0:02:06]} 14... Ra8 {[%clk 0:02:24.5]} 15. Rd1
{[%clk 0:02:00]} 15... Kc8 {[%clk 0:02:22.3]} 16. Bf1 {[%clk 0:01:39.7]} 16...
Be7 {[%clk 0:02:16.5]} 17. Bd2 {[%clk 0:01:34.8]} 17... Rd8 {[%clk 0:02:10]} 18.
Bb4 {[%clk 0:01:32.8]} 18... Rxd1 {[%clk 0:01:56.6]} 19. Rxd1 {[%clk 0:01:31.6]}
19... Bxb4 {[%clk 0:01:51.1]} 20. axb4 {[%clk 0:01:31.5]} 20... b5 {[%clk
0:01:44.7]} 21. Na5 {[%clk 0:01:29.8]} 21... Nb2 {[%clk 0:01:35]} 22. Rc1 {[%clk
0:01:23.6]} 22... Nxc4 {[%clk 0:01:12.8]} 23. Nxc4 {[%clk 0:01:21.9]} 23... bxc4
{[%clk 0:01:09.9]} 24. h3 {[%clk 0:01:21.2]} 24... Rb8 {[%clk 0:01:01.9]} 25.
Bxc4 {[%clk 0:01:21]} 25... Rxb4 {[%clk 0:01:01.8]} 26. Bxe6+ {[%clk 0:01:21.1]}
26... fxe6 {[%clk 0:01:02.7]} 27. Rc5 {[%clk 0:01:21.1]} 27... e4 {[%clk
0:01:01.5]} 28. h4 {[%clk 0:01:11.6]} 28... h6 {[%clk 0:00:54]} 29. Kh2 {[%clk
0:01:07]} 29... Kd7 {[%clk 0:00:51.3]} 30. Kg3 {[%clk 0:01:04]} 30... Kd6 {[%clk
0:00:51.7]} 31. Ra5 {[%clk 0:01:04.3]} 31... Rb8 {[%clk 0:00:44.8]} 32. Ra2
{[%clk 0:00:57.2]} 32... Rf8 {[%clk 0:00:35.8]} 33. Ra6+ {[%clk 0:00:51.8]}
33... Kd5 {[%clk 0:00:33]} 34. Ra7 {[%clk 0:00:47.8]} 34... Rf7 {[%clk
0:00:32.9]} 35. f3 {[%clk 0:00:44.6]} 35... exf3 {[%clk 0:00:24.6]} 36. gxf3
{[%clk 0:00:45.5]} 36... Kd6 {[%clk 0:00:24.3]} 37. e4 {[%clk 0:00:42.5]} 37...
e5 {[%clk 0:00:20.7]} 38. h5 {[%clk 0:00:39.1]} 38... Re7 {[%clk 0:00:20.2]} 39.
Kg4 {[%clk 0:00:37]} 39... c6 {[%clk 0:00:20.1]} 40. Ra8 {[%clk 0:00:36.1]}
40... Rf7 {[%clk 0:00:20.3]} 41. Rd8+ {[%clk 0:00:35.2]} 41... Kc7 {[%clk
0:00:19.4]} 42. Ra8 {[%clk 0:00:34.1]} 42... Kd6 {[%clk 0:00:18.3]} 43. Rd8+
{[%clk 0:00:31.2]} 43... Rd7 {[%clk 0:00:18.4]} 44. Rf8 {[%clk 0:00:26.2]} 44...
c5 {[%clk 0:00:18.5]} 45. Kf5 {[%clk 0:00:26.2]} 45... Rc7 {[%clk 0:00:16.7]}
46. Rd8+ {[%clk 0:00:24.3]} 46... Ke7 {[%clk 0:00:16.8]} 47. Rd5 {[%clk
0:00:23.6]} 47... c4 {[%clk 0:00:17]} 48. Rxe5+ {[%clk 0:00:23.9]} 48... Kf7
{[%clk 0:00:16.2]} 49. Ra5 {[%clk 0:00:23.5]} 49... c3 {[%clk 0:00:15.6]} 50.
Ra1 {[%clk 0:00:24]} 50... c2 {[%clk 0:00:15.6]} 51. Rc1 {[%clk 0:00:24.6]}
51... Rc3 {[%clk 0:00:15]} 52. f4 {[%clk 0:00:24.1]} 52... Ke7 {[%clk
0:00:13.9]} 53. e5 {[%clk 0:00:22.4]} 53... Rc4 {[%clk 0:00:13.2]} 54. Kg4
{[%clk 0:00:20.2]} 54... Ke6 {[%clk 0:00:13.1]} 55. Kf3 {[%clk 0:00:19.4]} 55...
Kf5 {[%clk 0:00:13.2]} 56. Ke3 {[%clk 0:00:19.5]} 56... Rc8 {[%clk 0:00:12.5]}
57. Kf3 {[%clk 0:00:18.4]} 57... Rc3+ {[%clk 0:00:12.4]} 58. Ke2 {[%clk
0:00:18.2]} 58... Kxf4 {[%clk 0:00:13]} 59. Kd2 {[%clk 0:00:18.8]} 59... Rc6
{[%clk 0:00:12.2]} 60. Rxc2 {[%clk 0:00:17.2]} 60... Rxc2+ {[%clk 0:00:12]} 61.
Kxc2 {[%clk 0:00:18.1]} 61... Kxe5 {[%clk 0:00:12.4]} 0-1

[Event "*** Titled Tuesday Blitz"]
[Site "Chess.com"]
[Date "2020.11.03"]
[Round "1"]
[White "Ashedu66"]
[Black "gammagramma"]
[Result "0-1"]
[WhiteElo "2229"]
[BlackElo "2560"]
[TimeControl "180+1"]
[EndTime "10:08:10 PST"]
[Termination "gammagramma won on time"]

1. d4 {[%clk 0:02:59.7]} 1... d5 {[%clk 0:02:59.5]} 2. c4 {[%clk 0:02:57.9]}
2... e6 {[%clk 0:02:59.2]} 3. Nf3 {[%clk 0:02:57]} 3... a6 {[%clk 0:02:59.2]} 4.
c5 {[%clk 0:02:51.9]} 4... Nf6 {[%clk 0:02:57.7]} 5. Nc3 {[%clk 0:02:51.4]} 5...
b6 {[%clk 0:02:58.3]} 6. cxb6 {[%clk 0:02:51]} 6... cxb6 {[%clk 0:02:59.2]} 7.
Bf4 {[%clk 0:02:50.8]} 7... Nc6 {[%clk 0:02:56.9]} 8. e3 {[%clk 0:02:49.9]} 8...
Be7 {[%clk 0:02:57.4]} 9. Rc1 {[%clk 0:02:49.6]} 9... Bb7 {[%clk 0:02:57.3]} 10.
Bd3 {[%clk 0:02:48.9]} 10... O-O {[%clk 0:02:57.6]} 11. O-O {[%clk 0:02:48.7]}
11... Nh5 {[%clk 0:02:58]} 12. Be5 {[%clk 0:02:45.2]} 12... f6 {[%clk
0:02:58.1]} 13. Bg3 {[%clk 0:02:43.4]} 13... f5 {[%clk 0:02:58.6]} 14. Be5
{[%clk 0:02:29.3]} 14... Nf6 {[%clk 0:02:57.9]} 15. Bg3 {[%clk 0:02:22.5]} 15...
Rc8 {[%clk 0:02:57.2]} 16. Ne5 {[%clk 0:02:09.8]} 16... Ne4 {[%clk 0:02:57.3]}
17. Nxc6 {[%clk 0:01:41.2]} 17... Rxc6 {[%clk 0:02:58.2]} 18. Be5 {[%clk
0:01:39.9]} 18... Nxc3 {[%clk 0:02:40.4]} 19. Rxc3 {[%clk 0:01:37]} 19... Rxc3
{[%clk 0:02:33.3]} 20. bxc3 {[%clk 0:01:37.1]} 20... b5 {[%clk 0:02:27.2]} 21.
a4 {[%clk 0:01:35.5]} 21... Bc6 {[%clk 0:02:24.8]} 22. axb5 {[%clk 0:01:26.8]}
22... Bxb5 {[%clk 0:02:25.1]} 23. Bxb5 {[%clk 0:01:20.1]} 23... axb5 {[%clk
0:02:26]} 24. Qb3 {[%clk 0:01:19.9]} 24... Qa5 {[%clk 0:02:17.5]} 25. Rb1 {[%clk
0:01:18.7]} 25... Rc8 {[%clk 0:02:17.1]} 26. Qxb5 {[%clk 0:01:12.7]} 26... Qxc3
{[%clk 0:02:16.8]} 27. g3 {[%clk 0:01:08.6]} 27... Kf7 {[%clk 0:02:15]} 28. Qd7
{[%clk 0:00:53.5]} 28... Qc6 {[%clk 0:02:11]} 29. Qxc6 {[%clk 0:00:48.5]} 29...
Rxc6 {[%clk 0:02:10.6]} 30. Rb7 {[%clk 0:00:48.4]} 30... g5 {[%clk 0:02:07.3]}
31. Kg2 {[%clk 0:00:33.5]} 31... h5 {[%clk 0:02:05.8]} 32. h3 {[%clk 0:00:32]}
32... g4 {[%clk 0:01:58.9]} 33. hxg4 {[%clk 0:00:31.4]} 33... fxg4 {[%clk
0:01:54.5]} 34. Bf4 {[%clk 0:00:30.6]} 34... Ke8 {[%clk 0:01:35]} 35. Rb8+
{[%clk 0:00:26.6]} 35... Kf7 {[%clk 0:01:33.9]} 36. Rb7 {[%clk 0:00:26]} 36...
Ke8 {[%clk 0:01:12.5]} 37. Rb8+ {[%clk 0:00:24.9]} 37... Kd7 {[%clk 0:01:08.5]}
38. Rh8 {[%clk 0:00:18.3]} 38... Rc2 {[%clk 0:01:08.4]} 39. Rxh5 {[%clk
0:00:15.4]} 39... Bb4 {[%clk 0:01:09.1]} 40. Rh7+ {[%clk 0:00:14.9]} 40... Ke8
{[%clk 0:01:09.3]} 41. e4 {[%clk 0:00:14]} 41... dxe4 {[%clk 0:01:06.1]} 42. Be3
{[%clk 0:00:13.6]} 42... Bd2 {[%clk 0:00:59.9]} 43. Bxd2 {[%clk 0:00:12.2]}
43... Rxd2 {[%clk 0:01:00.8]} 44. Kf1 {[%clk 0:00:11.1]} 44... Rxd4 {[%clk
0:00:57.3]} 45. Rg7 {[%clk 0:00:11.3]} 45... e3 {[%clk 0:00:55.6]} 46. fxe3
{[%clk 0:00:10.8]} 46... Re4 {[%clk 0:00:56]} 47. Ke2 {[%clk 0:00:10.3]} 47...
Kf8 {[%clk 0:00:56.4]} 48. Rg5 {[%clk 0:00:09.6]} 48... Kf7 {[%clk 0:00:53.6]}
49. Kd3 {[%clk 0:00:09.1]} 49... Ra4 {[%clk 0:00:50.2]} 50. Rb5 {[%clk
0:00:07.6]} 50... Kf6 {[%clk 0:00:50.4]} 51. Rc5 {[%clk 0:00:06.2]} 51... Ra2
{[%clk 0:00:49.1]} 52. Rb5 {[%clk 0:00:05.5]} 52... Rg2 {[%clk 0:00:48.1]} 53.
Ke4 {[%clk 0:00:05.7]} 53... Rxg3 {[%clk 0:00:46.3]} 54. Kf4 {[%clk 0:00:05.5]}
54... Rg1 {[%clk 0:00:45.2]} 55. Rb8 {[%clk 0:00:04.5]} 55... e5+ {[%clk
0:00:39.5]} 56. Ke4 {[%clk 0:00:03.4]} 56... Kg5 {[%clk 0:00:34.1]} 57. Kxe5
{[%clk 0:00:02.8]} 57... Re1 {[%clk 0:00:31.8]} 58. e4 {[%clk 0:00:02.8]} 58...
g3 {[%clk 0:00:31.3]} 59. Rg8+ {[%clk 0:00:02.8]} 59... Kh4 {[%clk 0:00:31.8]}
60. Kf5 {[%clk 0:00:02.3]} 60... Rf1+ {[%clk 0:00:31]} 61. Ke6 {[%clk
0:00:02.1]} 61... Rf4 {[%clk 0:00:30]} 0-1

[Event "*** Titled Tuesday Blitz"]
[Site "Chess.com"]
[Date "2020.11.03"]
[Round "1"]
[White "woodhy"]
[Black "niki_2003"]
[Result "1-0"]
[WhiteElo "2482"]
[BlackElo "1914"]
[TimeControl "180+1"]
[EndTime "10:08:10 PST"]
[Termination "woodhy won by resignation"]

1. e4 {[%clk 0:02:58.2]} 1... c5 {[%clk 0:03:00.1]} 2. Nf3 {[%clk 0:02:54.8]}
2... d6 {[%clk 0:03:00.3]} 3. d4 {[%clk 0:02:54.7]} 3... cxd4 {[%clk 0:03:00.7]}
4. Nxd4 {[%clk 0:02:55.6]} 4... Nf6 {[%clk 0:03:01.2]} 5. f3 {[%clk 0:02:53.7]}
5... g6 {[%clk 0:03:01.7]} 6. c4 {[%clk 0:02:53.4]} 6... Bg7 {[%clk 0:02:59.2]}
7. Be3 {[%clk 0:02:53.7]} 7... Nc6 {[%clk 0:02:57]} 8. Nc3 {[%clk 0:02:53.9]}
8... Qb6 {[%clk 0:02:51.3]} 9. Ncb5 {[%clk 0:02:27.2]} 9... Qa5+ {[%clk
0:02:18]} 10. Bd2 {[%clk 0:02:21]} 10... Qb6 {[%clk 0:02:06.1]} 11. Be3 {[%clk
0:01:41.1]} 11... Qa5+ {[%clk 0:02:05.3]} 12. Qd2 {[%clk 0:01:39.1]} 12... Qxd2+
{[%clk 0:02:00.5]} 13. Kxd2 {[%clk 0:01:38.2]} 13... Kd7 {[%clk 0:01:49.8]} 14.
Nxc6 {[%clk 0:01:33.6]} 14... bxc6 {[%clk 0:01:48.6]} 15. Nc3 {[%clk 0:01:34.1]}
15... a5 {[%clk 0:01:44.1]} 16. Rd1 {[%clk 0:01:32.5]} 16... Ba6 {[%clk
0:01:41.3]} 17. Na4 {[%clk 0:01:32.6]} 17... Kc7 {[%clk 0:01:38.5]} 18. b3
{[%clk 0:01:24.3]} 18... Rab8 {[%clk 0:01:35.1]} 19. Bd3 {[%clk 0:01:22.6]}
19... Nd7 {[%clk 0:01:34.2]} 20. Ke2 {[%clk 0:01:21.8]} 20... Ne5 {[%clk
0:01:33.4]} 21. Bd2 {[%clk 0:01:16.5]} 21... Kb7 {[%clk 0:01:17]} 22. Bxa5
{[%clk 0:01:08.5]} 22... Ra8 {[%clk 0:01:17.2]} 23. Bc3 {[%clk 0:01:06.5]} 23...
Nxd3 {[%clk 0:01:02.5]} 24. Kxd3 {[%clk 0:01:05.7]} 24... Bxc3 {[%clk
0:01:01.1]} 25. Kxc3 {[%clk 0:01:06.6]} 25... Rhd8 {[%clk 0:00:57.3]} 26. Rhe1
{[%clk 0:01:04.5]} 26... e6 {[%clk 0:00:55.7]} 27. e5 {[%clk 0:01:02.3]} 27...
d5 {[%clk 0:00:55.7]} 28. h4 {[%clk 0:00:56.3]} 28... Kc7 {[%clk 0:00:47.7]} 29.
c5 {[%clk 0:00:55.4]} 29... Bb5 {[%clk 0:00:47.1]} 30. Rd4 {[%clk 0:00:45]}
30... Ra5 {[%clk 0:00:43.6]} 31. Kb2 {[%clk 0:00:39.8]} 31... Bxa4 {[%clk
0:00:34.8]} 32. Rxa4 {[%clk 0:00:37.7]} 32... Rxa4 {[%clk 0:00:30.9]} 33. bxa4
{[%clk 0:00:38.6]} 33... Kb7 {[%clk 0:00:24]} 34. Kc3 {[%clk 0:00:37.2]} 34...
Ka6 {[%clk 0:00:24.2]} 35. Rb1 {[%clk 0:00:37.8]} 35... Ka5 {[%clk 0:00:21.3]}
36. Rb6 {[%clk 0:00:36.5]} 36... Kxa4 {[%clk 0:00:20.2]} 37. Rxc6 {[%clk
0:00:36.6]} 37... Kb5 {[%clk 0:00:20.6]} 38. Rc7 {[%clk 0:00:36.5]} 38... d4+
{[%clk 0:00:19.7]} 39. Kd3 {[%clk 0:00:36.3]} 39... Kb4 {[%clk 0:00:20]} 40. c6
{[%clk 0:00:35.7]} 40... Kc5 {[%clk 0:00:19.1]} 41. Rd7 {[%clk 0:00:24.9]} 41...
Ra8 {[%clk 0:00:16.8]} 42. Rxd4 {[%clk 0:00:24.7]} 42... Ra3+ {[%clk 0:00:16.8]}
43. Ke4 {[%clk 0:00:24.9]} 43... Kxc6 {[%clk 0:00:17.1]} 44. Rd2 {[%clk
0:00:24.9]} 44... Ra4+ {[%clk 0:00:16.6]} 45. Ke3 {[%clk 0:00:24.2]} 45... Ra3+
{[%clk 0:00:17.1]} 46. Kf4 {[%clk 0:00:23.9]} 46... Ra4+ {[%clk 0:00:17.3]} 47.
Kg5 {[%clk 0:00:24.3]} 47... Ra5 {[%clk 0:00:15]} 48. Kf6 {[%clk 0:00:22.6]}
48... Kc5 {[%clk 0:00:10.8]} 49. Kxf7 {[%clk 0:00:22.2]} 49... Ra6 {[%clk
0:00:08.6]} 50. Rd6 {[%clk 0:00:20.6]} 50... Rxd6 {[%clk 0:00:07.9]} 51. exd6
{[%clk 0:00:21.5]} 51... Kxd6 {[%clk 0:00:08.8]} 52. a4 {[%clk 0:00:20.5]} 52...
e5 {[%clk 0:00:08.7]} 53. a5 {[%clk 0:00:20.8]} 53... Kc6 {[%clk 0:00:07]} 54.
Ke6 {[%clk 0:00:21]} 54... Kb5 {[%clk 0:00:07.4]} 55. Kxe5 {[%clk 0:00:21]}
55... Kxa5 {[%clk 0:00:08.3]} 56. Kf6 {[%clk 0:00:21.9]} 56... Kb5 {[%clk
0:00:08.8]} 57. Kg7 {[%clk 0:00:22.8]} 57... Kc5 {[%clk 0:00:08.4]} 58. Kxh7
{[%clk 0:00:23.2]} 58... Kd5 {[%clk 0:00:08.9]} 59. Kxg6 {[%clk 0:00:23.3]}
59... Ke5 {[%clk 0:00:09.5]} 60. h5 {[%clk 0:00:24.2]} 60... Kf4 {[%clk
0:00:10]} 61. h6 {[%clk 0:00:25.1]} 61... Kg3 {[%clk 0:00:10.7]} 62. h7 {[%clk
0:00:26]} 62... Kxg2 {[%clk 0:00:11.4]} 63. h8=Q {[%clk 0:00:26.9]} 63... Kxf3
{[%clk 0:00:12.1]} 64. Qh4 {[%clk 0:00:26.7]} 1-0

[Event "*** Titled Tuesday Blitz"]
[Site "Chess.com"]
[Date "2020.11.03"]
[Round "1"]
[White "vinniethepooh"]
[Black "Eloist"]
[Result "1-0"]
[WhiteElo "2564"]
[BlackElo "2231"]
[TimeControl "180+1"]
[EndTime "10:08:11 PST"]
[Termination "vinniethepooh won on time"]

1. d4 {[%clk 0:02:56.9]} 1... e6 {[%clk 0:02:59.5]} 2. c4 {[%clk 0:02:57.1]}
2... Nf6 {[%clk 0:02:59.3]} 3. Nc3 {[%clk 0:02:57.5]} 3... Bb4 {[%clk
0:02:59.1]} 4. f3 {[%clk 0:02:57.9]} 4... c5 {[%clk 0:02:57.7]} 5. d5 {[%clk
0:02:58]} 5... Bxc3+ {[%clk 0:02:57.7]} 6. bxc3 {[%clk 0:02:57.8]} 6... Qa5
{[%clk 0:02:57.9]} 7. e4 {[%clk 0:02:46.2]} 7... d6 {[%clk 0:02:55.8]} 8. Qc2
{[%clk 0:02:22.5]} 8... Nbd7 {[%clk 0:02:47.9]} 9. Bd3 {[%clk 0:02:16.5]} 9...
Ne5 {[%clk 0:02:47.1]} 10. Ne2 {[%clk 0:02:13.2]} 10... Bd7 {[%clk 0:02:46.3]}
11. a4 {[%clk 0:02:10.7]} 11... b5 {[%clk 0:02:13.9]} 12. Ng3 {[%clk 0:01:41.6]}
12... bxc4 {[%clk 0:02:04.7]} 13. Be2 {[%clk 0:01:41.2]} 13... Rb8 {[%clk
0:01:45.9]} 14. O-O {[%clk 0:01:29.9]} 14... Rb3 {[%clk 0:01:45.4]} 15. f4
{[%clk 0:01:22.7]} 15... Neg4 {[%clk 0:00:49]} 16. h3 {[%clk 0:00:50.1]} 16...
Qxc3 {[%clk 0:00:43]} 17. Qxc3 {[%clk 0:00:39.9]} 17... Rxc3 {[%clk 0:00:43.9]}
18. Rf3 {[%clk 0:00:13.8]} 18... Rxf3 {[%clk 0:00:37.1]} 19. Bxf3 {[%clk
0:00:14.7]} 19... Nh6 {[%clk 0:00:36.7]} 20. Bb2 {[%clk 0:00:15.1]} 20... O-O
{[%clk 0:00:29.5]} 21. Bxf6 {[%clk 0:00:15.3]} 21... gxf6 {[%clk 0:00:29.1]} 22.
Nh5 {[%clk 0:00:16.2]} 22... Kh8 {[%clk 0:00:20.5]} 23. Nxf6 {[%clk 0:00:16.5]}
23... Rd8 {[%clk 0:00:20.2]} 24. Rc1 {[%clk 0:00:09.2]} 24... Bxa4 {[%clk
0:00:17]} 25. Rxc4 {[%clk 0:00:09.5]} 25... Bb5 {[%clk 0:00:16.4]} 26. Rc3
{[%clk 0:00:09.9]} 26... Ng8 {[%clk 0:00:16.1]} 27. Nxg8 {[%clk 0:00:04.5]}
27... Kxg8 {[%clk 0:00:17]} 28. Ra3 {[%clk 0:00:04.3]} 28... a6 {[%clk
0:00:16.3]} 29. Kf2 {[%clk 0:00:04.8]} 29... exd5 {[%clk 0:00:16.4]} 30. exd5
{[%clk 0:00:05.7]} 30... Re8 {[%clk 0:00:16.5]} 31. g4 {[%clk 0:00:04.9]} 31...
f6 {[%clk 0:00:15.9]} 32. h4 {[%clk 0:00:04.7]} 32... Kg7 {[%clk 0:00:16.1]} 33.
g5 {[%clk 0:00:04.6]} 33... c4 {[%clk 0:00:14.2]} 34. f5 {[%clk 0:00:04]} 34...
Rc8 {[%clk 0:00:13.4]} 35. Re3 {[%clk 0:00:02.9]} 35... Kf8 {[%clk 0:00:11.8]}
36. gxf6 {[%clk 0:00:02.7]} 36... c3 {[%clk 0:00:11.9]} 37. Re1 {[%clk
0:00:01.9]} 37... c2 {[%clk 0:00:11.5]} 38. Rc1 {[%clk 0:00:02.3]} 38... Bd3
{[%clk 0:00:11.3]} 39. Ke3 {[%clk 0:00:02]} 39... Bxf5 {[%clk 0:00:11]} 40. Kf4
{[%clk 0:00:02.6]} 40... Bd3 {[%clk 0:00:09.2]} 41. Ke3 {[%clk 0:00:03]} 41...
Bg6 {[%clk 0:00:08.9]} 42. h5 {[%clk 0:00:03.5]} 42... Rc3+ {[%clk 0:00:06.4]}
43. Kf4 {[%clk 0:00:01.5]} 43... Bd3 {[%clk 0:00:04.6]} 44. Ke3 {[%clk 0:00:02]}
44... Bg6+ {[%clk 0:00:03.1]} 45. Kf4 {[%clk 0:00:02.3]} 45... Bf7 {[%clk
0:00:03]} 46. Be4 {[%clk 0:00:02.4]} 46... Rc4 {[%clk 0:00:02.3]} 47. Rxc2
{[%clk 0:00:02.6]} 47... Rxc2 {[%clk 0:00:02.1]} 48. Bxc2 {[%clk 0:00:03.5]}
48... h6 {[%clk 0:00:02.4]} 49. Bg6 {[%clk 0:00:03.6]} 49... a5 {[%clk 0:00:02]}
50. Kf5 {[%clk 0:00:03.7]} 1-0